Cogmind - Beta 16 @@@ ROGUE MODE // 2025.10.28 @ 17:21:17 Player: celerysam Result: Destroyed by D-53 Grenadier with Mini Grenade Launcher Performance ------------- Evolutions (0) 0 Regions Visited (3) 600 Robots Destroyed (31) 155 Value Destroyed (863) 863 Prototype IDs (12) 240 Alien Tech Used (0) 0 Bonus (0) 0 TOTAL SCORE: 1858 Bonus ------- None Cogmind --------- Core Integrity 0/250 Matter 275/300 Energy 240/240 System Corruption 0% Temperature Cool (0) Movement Rolling (100) Location -7/Recycling Parts ------- > --- POWER (1+1) ------ Nuclear Core > --- PROPULSION (2+1) - Compact Wheel > --- UTILITY (2) ------ Rainbow Chip > --- WEAPON (2+1) ----- Improved Light Cannon Battle Cannon > --- INVENTORY (5) ---- Light Deuterium Engine Scrap Engine Datajack Great Axe Peak State ------------ > --- POWER ------------ Nuclear Core > --- PROPULSION ------- Compact Wheel Compact Wheel > --- UTILITY ---------- Scrap Shield Rainbow Chip > --- WEAPON ----------- Battle Cannon Great Axe > --- INVENTORY -------- Light Treads Compact Wheel Improved Light Cannon Improved Light Cannon Datajack [Rating: 28] Favorites ----------- Power Ion Engine Engine Ion Engine Power Core Nuclear Core Propulsion Light Treads Treads Light Treads Leg Aluminum Leg Wheel Compact Wheel Utility Improved Heat Sink Device Improved Heat Sink Storage High-capacity Storage Unit Processor Rainbow Chip Protection Scrap Shield Weapon Improved Light Cannon Energy Gun Medium Laser Ballistic Gun Assault Rifle Ballistic Cannon Improved Light Cannon Slashing Weapon Mining Claw Special Melee Weapon Datajack Build | -11 -10 -10 -7 ------- Run | Yrd Mat Sub Rec Slots Evolved . | . . . . Power . | . . . . Propulsion . | . . . . Utility . | . . . . Weapon . | . . . . Parts Attached 34 | 6 9 12 7 Power 6 | 1 1 3 1 Engine 5 | 1 1 3 . Core 1 | . . . 1 Reactor . | . . . . Propulsion 10 | 2 3 5 . Treads 4 | . 3 1 . Leg 2 | 2 . . . Wheel 4 | . . 4 . Hover . | . . . . Flight . | . . . . Utility 6 | 1 3 . 2 Device 1 | . 1 . . Storage 3 | 1 2 . . Processor 1 | . . . 1 Hackware . | . . . . Protection 1 | . . . 1 Artifact . | . . . . Weapon 12 | 2 2 4 4 Energy Gun 1 | 1 . . . Energy Cannon . | . . . . Ballistic Gun 1 | 1 . . . Ballistic Cannon 7 | . 2 3 2 Launcher . | . . . . Special Weapon . | . . . . Impact Weapon . | . . . . Slashing Weapon 2 | . . 1 1 Piercing Weapon . | . . . . Special Melee Weapon 1 | . . . 1 Unidentified Prototypes . | . . . . Parts Lost 7 | . . 5 2 Power 1 | . . 1 . Propulsion 4 | . . 3 1 Utility 1 | . . . 1 Weapon 1 | . . 1 . Highest Loss Streak 1 | . . 1 1 To Critical Strikes 1 | . . 1 . Average Backups 16 | 4 13 18 5 Power 1 | . 1 1 . Propulsion 4 | 3 4 4 1 Utility 2 | . 1 3 . Weapon 6 | . 6 7 2 Tool/Special . | . . . . Unused Backups 13 | . 1 1 11 Power 1 | . . . 1 Propulsion 2 | . . . 2 Utility 4 | . . . 4 Weapon 6 | . 1 1 4 Tool/Special . | . . . . Average Slot Usage (%) 97 | . 98 99 64 Engine 13 | . 14 14 3 Treads 15 | . 27 13 . Wheel 11 | . . 14 18 Device 12 | . 12 14 . Storage 13 | . 14 14 . Ballistic Cannon 23 | . 23 23 17 Slashing Weapon 2 | . . 4 . Peak Build Rating 28 | 6 13 16 28 Average Rating 13 | 3 11 13 25 On Entrance 8 | . 6 13 15 Avg Prop Armor Cover (%) 6 | . . 6 . Naked Turns . | . . . . Heaviest Build 54 | 14 54 54 32 Greatest Support 40 | 20 40 40 32 Greatest Overweight (x) 3 | . 1 3 . Average Overweight (x) . | . . 1 . Largest Inventory Capacity 20 | 8 20 20 20 Average Capacity 17 | 6 15 20 5 Most Carried 20 | 6 18 20 20 Average Carried 16 | 5 13 19 5 Final Capacity 20 | 8 20 20 5 Final Carried 20 | 6 18 20 5 Class Distribution -------------------- 96% | Mutant 3% | Scavenger-Mutant Dominant Class ---------------- Mutant | -10/Materials Mutant | -10/Subcaves Mutant | -7/Recycling Resources | -11 -10 -10 -7 ----------- Run | Yrd Mat Sub Rec Matter Collected 1220 | 142 272 697 109 Remotely . | . . . . Salvage Created 720 | . 436 171 113 Parts 45 | . 28 12 5 Haulers Intercepted 2 | . 2 . . Recyclers Shooed . | . . . . Parts Field Recycled . | . . . . Retrieved Matter . | . . . . Parts Self-Destructed 24 | . . 24 . Prevented . | . . . . Parts Restored . | . . . . Kills | -11 -10 -10 -7 ------- Run | Yrd Mat Sub Rec Combat Hostiles Destroyed 23 | . 9 11 3 Guns 7 | . 7 . . Cannons 16 | . 2 11 3 Classes Destroyed 10 | . 5 2 3 Tunneler 1 | . 1 . . Hauler 2 | . 2 . . Turret 2 | . . 2 . Watcher 3 | . 3 . . Swarmer 7 | . 3 4 . Grunt 6 | . 6 . . Brawler 1 | . . . 1 Programmer 1 | . . . 1 Subdweller 7 | . . 7 . Scrapper 1 | . . . 1 Best Kill Streak 8 | . 8 5 2 Combat Bots Only 7 | . 7 4 2 Max Kills in Single Turn 2 | . 2 1 1 Gunslinging . | . . . . Exploded . | . . . . Melee . | . . . . Uniques/NPCs Destroyed . | . . . . Combat | -11 -10 -10 -7 -------- Run | Yrd Mat Sub Rec Hostile Shots Fired 150 | . 34 94 22 Missed 49 | . 11 31 7 Hits 101 | . 23 63 15 Projectile 101 | . 23 63 15 AOE 5 | . . . 5 Critical Strikes 3 | . . 3 . Damage Taken 1650 | . 234 1094 322 Core 255 | . 35 199 21 Absorbed by Shields 22 | . . . 22 Core Remaining (%) 100 | 100 . . . Volleys Fired 94 | . 29 59 6 Largest 2 | . 2 2 2 Hottest 70 | . 70 66 66 Shots Fired 186 | . 58 117 11 Gun 34 | . 34 . . Cannon 152 | . 24 117 11 Launcher . | . . . . Special . | . . . . Kinetic 169 | . 41 117 11 Thermal 17 | . 17 . . Explosive . | . . . . Electromagnetic . | . . . . Robot Hit Streak 13 | . 13 12 9 Robot Miss Streak 3 | . 3 3 2 Penetration Max . | . . . . Secondary Targets 1 | . 1 . . Max Gunslinging Chain 1 | . 1 . . Shots Hit Robots 105 | . 36 57 12 Core Hits 44 | . 19 20 5 Critical Kills . | . . . . Critical Parts Destroyed . | . . . . Critical Strikes 7 | . 2 3 2 Burn 2 | . 2 . . Blast 5 | . . 3 2 Melee Attacks 18 | . . 15 3 Impact . | . . . . Slashing 15 | . . 15 . Piercing . | . . . . Sneak Attacks 3 | . . . 3 Combat Hostiles . | . . . . Follow-up Attacks . | . . . . Damage Inflicted 1984 | . 631 1171 182 Guns 330 | . 330 . . Cannons 1654 | . 301 1171 182 Explosions . | . . . . Melee . | . . . . Ramming . | . . . . Kinetic 1794 | . 441 1171 182 Thermal 190 | . 190 . . Explosive . | . . . . Electromagnetic . | . . . . Impact . | . . . . Slashing . | . . . . Piercing . | . . . . Highest Corruption . | . . . . Average Corruption . | . . . . Corruption Purged . | . . . . Corruption Blocked . | . . . . Overload Shots . | . . . . Overflow Damage 11 | . . 11 . Projectiles 11 | . . 11 . Explosions . | . . . . Melee . | . . . . Knockbacks 12 | . 3 6 3 Impact . | . . . . Kinetic 12 | . 3 6 3 Secondary . | . . . . Self-Inflicted Damage . | . . . . Shots . | . . . . Rammed . | . . . . Targets Rammed . | . . . . Kicked . | . . . . Crushed . | . . . . Highest Temperature 99 | . 99 . 36 Average Temperature 29 | . 33 . 15 Received Heat Transfer 243 | . 81 96 66 Siege Activations . | . . . . Martial Activations . | . . . . Shielding Activations . | . . . . Robots Disrupted . | . . . . Combat Hostiles . | . . . . Robots Corrupted . | . . . . Combat Hostiles . | . . . . Parts Fried . | . . . . Impact Corruptions . | . . . . Robots Melted . | . . . . Combat Hostiles . | . . . . Parts Melted 2 | . 2 . . Heat Transferred 703 | . 703 . . Parts Sabotaged . | . . . . Parts Stolen . | . . . . Parts Stripped . | . . . . Power Chain Reactions . | . . . . Alert | -11 -10 -10 -7 ------- Run | Yrd Mat Sub Rec Maximum Alert Level . | . . . . Low Security (%) 100 | 100 100 . 100 Level 1 . | . . . . Level 2 . | . . . . Level 3 . | . . . . Level 4 . | . . . . Level 5 . | . . . . High Security . | . . . . Max Security . | . . . . Peak Influence 142 | . 142 . 41 Initial 8 | . . . 8 Average 33 | . 41 . 10 Influence Increases 538 | . 272 180 86 Destroy 0b10 Robot/C 340 | . 180 120 40 Destroy 0b10 Robot/NC 30 | . 30 . . Destroy Leader 30 | . 30 . . Disable Machine 30 | . 30 . . Destroy Structure 3 | . 2 . 1 Lose Combat Pursuer 105 | . . 60 45 Influence Decreases 512 | . 272 162 78 Entered New Map 10 | . . . 10 Time Decay 462 | . 272 142 48 Lost Part 40 | . . 20 20 Squads Dispatched . | . . . . Investigation . | . . . . Extermination . | . . . . Reinforcement . | . . . . Assault . | . . . . Garrison . | . . . . Intercept . | . . . . Searches Triggered . | . . . . Construction Impeded . | . . . . Haulers Reinforced . | . . . . Active Scanning Responses . | . . . . Cargo Convoy Interrupts . | . . . . Stealth | -11 -10 -10 -7 --------- Run | Yrd Mat Sub Rec Distress Signals 1 | . 1 . . Communications Jammed . | . . . . Distress Signals . | . . . . Times Spotted 38 | . 13 16 9 Peak Tracking Total 6 | . 4 6 4 Tactical Retreats 4 | . . 2 2 Traps | -11 -10 -10 -7 ------- Run | Yrd Mat Sub Rec Traps Triggered 4 | . . 4 . Indirectly . | . . . . Trap Hack Attempts . | . . . . Triggered . | . . . . Disarmed . | . . . . Reprogrammed . | . . . . Reused . | . . . . Traps Extracted . | . . . . Installed . | . . . . Triggered . | . . . . Most Traps Carried 1 | . . 1 1 Machines | -11 -10 -10 -7 ---------- Run | Yrd Mat Sub Rec Machines Disabled 5 | . 2 3 . Max in Single Turn 1 | . 1 1 . Machines Repaired . | . . . . Machines Dismantled . | . . . . Machines Sabotaged . | . . . . Overloaded Fab Kills . | . . . . Hacking | -11 -10 -10 -7 --------- Run | Yrd Mat Sub Rec Machines Accessed 3 | . . 2 1 Terminals . | . . . . Fabricators . | . . . . Repair Stations . | . . . . Recycling Units . | . . . . Scanalyzers . | . . . . Garrison Access . | . . . . Total Hacks 8 | . . 6 2 Successful 8 | . . 6 2 Failed . | . . . . Catastrophic . | . . . . Database Lockouts . | . . . . Manual . | . . . . Terminals . | . . . . Fabricators . | . . . . Repair Stations . | . . . . Recycling Units . | . . . . Scanalyzers . | . . . . Garrison Access . | . . . . Terminal Hacks 8 | . . 6 2 Record 5 | . . 5 . Proto ID Catalog 1 | . . 1 . Release Object 2 | . . . 2 Fabricator Hacks . | . . . . Repair Station Hacks . | . . . . Recycling Unit Hacks . | . . . . Scanalyzer . | . . . . Garrison Access Hacks . | . . . . Unauthorized Hacks . | . . . . Terminals . | . . . . Fabricators . | . . . . Repair Stations . | . . . . Recycling Units . | . . . . Scanalyzers . | . . . . Garrison Access . | . . . . Data Cores Recovered . | . . . . Used . | . . . . Hacking Detections . | . . . . Full Trace Events . | . . . . Feedback Events . | . . . . Feedback Blocked . | . . . . Robot Schematics Acquired . | . . . . Robots Built . | . . . . Authchips . | . . . . Time . | . . . . Total Robot Build Rating . | . . . . Part Schematics Acquired . | . . . . Parts Built . | . . . . Authchips . | . . . . Time . | . . . . Total Part Build Rating . | . . . . Part Studies Acquired . | . . . . Parts Repaired . | . . . . Time . | . . . . Parts Recycled . | . . . . Recycled Matter . | . . . . Retrieved Matter . | . . . . Retrieved Components . | . . . . Parts Scanalyzed . | . . . . Part Schematics Acquired . | . . . . Parts Damaged . | . . . . Bothacking | -11 -10 -10 -7 ------------ Run | Yrd Mat Sub Rec Used RIF Installer . | . . . . Robots Hacked . | . . . . Non-combat . | . . . . Combat . | . . . . Robot Hacks Applied . | . . . . Relay Couplers Released . | . . . . Fabnet Peak Effective % . | . . . . Robots Rewired 3 | . . . 3 Allies Hacked . | . . . . Hacks Repelled . | . . . . Allies | -11 -10 -10 -7 -------- Run | Yrd Mat Sub Rec Total Allies 3 | . . . 3 Largest Group 2 | . . . 2 Highest-Rated Group 56 | . . . 56 Highest-Rated Ally 40 | . . . 40 Total Orders . | . . . . Ally Attacks 1 | . . . 1 Total Damage . | . . . . Kills . | . . . . Allies Corrupted . | . . . . Allies Melted . | . . . . Intel | -11 -10 -10 -7 ------- Run | Yrd Mat Sub Rec Active Infowar (turns) . | . . . . Robot Analysis Total . | . . . . Derelict Logs Recovered 1 | . . 1 . Drone Launches . | . . . . Drone Recoveries . | . . . . Exploration | -11 -10 -10 -7 ------------- Run | Yrd Mat Sub Rec Turns Passed 4543 | 73 1018 3182 270 Spaces Moved 2600 | 55 423 1899 223 Core 12 | 12 . . . Treads 975 | . 415 560 . Legs 51 | 43 8 . . Wheels 1562 | . . 1339 223 Hover . | . . . . Flight . | . . . . Fastest Speed 50 | 50 120 115 100 Average Speed 155 | 104 207 152 100 Slowest Speed 240 | 120 240 240 100 Overloaded Moves . | . . . . Propulsion Burnouts . | . . . . Robots Hopped . | . . . . Potential Cave-ins . | . . . . Cave-ins Triggered . | . . . . Exploration Rate (%) 54 | 4 69 94 51 Regions Visited 3 Branch Regions 2 Pre-discovered Areas 3 | . . 3 . Known Exits Taken . | . . . . Unknown Exits Taken 3 | 1 1 1 . Scrap Searched 6 | . . 6 . Spaces Dug . | . . . . Terrain Destroyed 4 | . 2 1 1 Melee . | . . . . Projectile 4 | . 2 1 1 AOE . | . . . . Terrain Rammed . | . . . . Walls Destroyed . | . . . . Machines Disabled . | . . . . Actions | -11 -10 -10 -7 --------- Run | Yrd Mat Sub Rec Total 2866 | 67 506 2036 257 Wait 58 | 1 19 34 4 Move 2597 | 54 422 1898 223 Hop . | . . . . Pick Up 38 | 6 18 9 5 Fast Attach 9 | 6 1 . 2 Attach 6 | . . 5 1 Detach . | . . . . Swap 24 | . 8 10 6 Drop 22 | . 9 6 7 Fire 94 | . 29 59 6 Melee 18 | . . 15 3 Ram . | . . . . Kick . | . . . . Crush . | . . . . Escape Stasis . | . . . . Rewire . | . . . . Trap . | . . . . Miscellaneous . | . . . . Route ------- -11/Scrapyard -10/Materials (discovered 4 exits: [*Mat x2] / [*Min] / *Sub) -10/Subcaves (discovered 3 exits: [*Mat x2] / *Rec) -7/Recycling History --------- Turn | Location | Event 2 | -11/Scrapyard | Met Revision 17 9 | -11/Scrapyard | Discovered new exit (range 15) 74 | -11/Scrapyard | Entered Materials 195 | -10/Materials | Destroyed 7 combat bots 386 | -10/Materials | Discovered new exit (range 14) 549 | -10/Materials | Discovered new exit (range 15) 749 | -10/Materials | Build established: Mutant 1065 | -10/Materials | Discovered new exit (range 4) 1077 | -10/Materials | Discovered new exit (range 7) 1092 | -10/Materials | Entered Subcaves 1212 | -10/Subcaves | A swath of the cavern ceiling suddenly collapsed 1761 | -10/Subcaves | Learned location of 1 exit from Materials 2223 | -10/Subcaves | Shifting Twisted Machinery released Piercing Trap 2287 | -10/Subcaves | Shifting Twisted Machinery released Shrapnel Trap 2499 | -10/Subcaves | Learned location of Zion (-7) 2499 | -10/Subcaves | Met a Zionite searching for "candidates" 2652 | -10/Subcaves | Shifting Twisted Machinery released Battle Cannon 2659 | -10/Subcaves | Shifting Twisted Machinery released Sub. Beam Cannon 2744 | -10/Subcaves | Visited Clippyterm 2748 | -10/Subcaves | Learned location of Extension (-6) 2748 | -10/Subcaves | Learned location of Section 7 (-2) 2844 | -10/Subcaves | Discovered new exit (range 11) 2858 | -10/Subcaves | Core integrity fell below 50% 3608 | -10/Subcaves | Discovered new exit (range 11) 3723 | -10/Subcaves | Visited 4L-MR0's lab 3737 | -10/Subcaves | Found Rainbow Chip 3755 | -10/Subcaves | Core integrity fell below 20% 4168 | -10/Subcaves | Discovered new exit (range 5) 4274 | -10/Subcaves | Entered Recycling 4281 | -7/Recycling | Attached Rainbow Chip, gained temporary slots: Power, Propulsion, Utility, Weapon 4440 | -7/Recycling | P-60 Hacker assimilated allied Angel 4a 4442 | -7/Recycling | P-60 Hacker assimilated allied Serf 4a 4494 | -7/Recycling | Scanned before Scraplab entrance 4510 | -7/Recycling | Angered Scraplab inhabitants 4513 | -7/Recycling | Found Prototype Device 4544 | -7/Recycling | Destroyed by D-53 Grenadier with Mini Grenade Launcher Last Messages --------------- 04513_ JN-9MX(j): "Defend the Scraplab!" 04513_ Acquired Prototype Device. Prototype Device integrity failing. 04521_ SK-0MX(j) heat short circuits Ovr. Pulse Rifle. 04521_ EG-UF1(j) knocked back. 04521_ EG-UF1(j) suffers critical hit (Blast). 04521_ EG-UF1(j) destroyed. 04523_ Acquired 64 matter. 04524_ Acquired 1 matter. 04528_ Dropped Imp. Light Cannon. 04529_ Acquired Lgt. Deuterium Engine. Prototype Device integrity failing. 04531_ The wall retracts into the floor. 04539_ SK-0MX(j) Mak. Microdissipator Network blasted off. 04539_ SK-0MX(j) knocked back. Prototype Device integrity failing. 04544_ SK-0MX(j) destroyed. 04544_ Com. Wheel destroyed. Map ----- +----------------------------------------------------+ | | | | | | | | | | | | | | | | | | | | | | | | | ???????????????????????????#########?????????? | | ???????????????????????????#"""""""#?????????? | | ???????????????????????????# " X " ## #??????? | | ?????????????????????####### = #??????? | | ????????????????????##% =! + = #??????? | | ????????????????????#!]##### "#??????? | | ????????????????????## #???# ""#??????? | | ?????????????????????#!#???#"& "& X ""???????? | | ?????????????????????# #???#"""""""" #??????? | | ??????????????????#### ################??????? | | ??????????????????# #??????????????????? | | ??????????????????# % #??????????????????? | | ??????????????????# ! %#??????????????????? | | ??????????????????# @ #??????????????????? | | ??????????????????## ###??????????????????? | | ???????????????????## % ????????????????????? | | ????????????????????# d #????????????????????? | | ????????????????????# Y ????????????????????? | | ??????????????? ??####/#####?????????????????? | | ?????????????? ?# #?????????????????? | | ??????????????" ?# """""#?????????????????? | | ?????????????"" ?# """""#?????????????????? | | ???????""?? """ ?# """""#?????????????????? | | ???????? ## """""#?????????????????? | | ???????? ## """""#?????????????????? | | ???? ??"" """ ## """""#?????????????????? | | ???# """ """ ## """""#?????????????????? | | ???# """ """ ## #?????????????????? | | ???# ######+####### ????????? | | ???# #???????? | | ???# #???????? | | ???# #???????? | | ???# ##### #### ????????? | | ???# #?????#??????????????? | | ???# # #### #????????????????????? | | ???# ######+##???????????????????? | | ???# #???????????????????? | | ???### +???????????????????? | +----------------------------------------------------+ Best States ------------- Heat Dissipation 39 Energy Generation 15 Energy Capacity 250 Matter Stores 300 Matter Capacity 300 Sight Range 16 Terrain Scan Density 10 Armor Coverage 800 Evasion (%) 50 Recoil Reduction 2 Item Schematics ----------------- None Robot Schematics ------------------ None Fabricated ------------ Nothing Repaired ---------- Nothing Studied --------- None Alien Tech Used ----------------- None Achievements -------------- You Again You May Approach The Wall Challenges ------------ None Game ------ Seed MappingHypercooledFlamer Manual? 0 Play Time 00:26:28 Cumulative 275.7 hours Start 2025.10.28 @ 16:46:45 End 2025.10.28 @ 17:21:17 Sessions 1 Manual Loads 0 Difficulty Rogue Special Mode None Game No. 440 Rogue 440 Adventurer 0 Explorer 0 Win Type - Total 1 Types 1/0/0/0/0/0/0/0/0/0 Lore% 64 Gallery% 62 Achievement% 27 Wizard Run 0 Options --------- Layout 1 ASCII 0 Keyboard 0 Movement Mouse Keybinds 0 Fullscreen 2 Font 24/Smallcaps Map View 50x35 Zoom Use 0% Tactical HUD 1 Map Filters NONE Filters NONE Steam 1 RUN: 23d09184-439c-4628-adee-49310ba502d6